bitfinex/quotes_ETHUSD_20220202
["timestamp","ask_amount","ask_price","bid_price","bid_amount"]
[1643842335203,1.57545754,2689.6,2689.3,0.538]
[1643842335407,1.57545754,2689.5,2689.3,0.538]
[1643842335605,0.1859,2690.1,2689.3,0.538]
[1643842335606,1.57545754,2689.4,2689.3,0.538]
[1643842336005,0.70113,2689.9,2689.3,0.538]
[1643842337006,1.57545754,2689.8,2689.3,0.538]
[1643842337213,1.57545754,2689.7,2689.3,0.538]
[1643842337406,1.57545754,2689.6,2689.3,0.538]
[1643842337607,0.70113,2690.0,2689.3,0.538]
[1643842337608,1.57545754,2689.5,2689.3,0.538]
[1643842337909,1.57545754,2689.4,2689.3,0.538]
[1643842338308,4.41651854,2690.1,2689.3,0.538]
[1643842338508,1.57545754,2690.0,2689.3,0.538]
[1643842338750,1.57545754,2689.9,2689.3,0.538]
[1643842338952,1.57545754,2689.8,2689.3,0.538]
[1643842339151,1.57545754,2689.7,2689.3,0.538]
[1643842339354,1.57545754,2689.6,2689.3,0.538]
[1643842339551,1.57545754,2689.5,2689.3,0.538]
[1643842339753,1.57545754,2690.0,2689.3,0.538]
[1643842339952,1.57545754,2689.9,2689.3,0.538]
[1643842340151,1.57545754,2689.8,2689.3,0.538]
[1643842340353,1.57545754,2689.7,2689.3,0.538]
[1643842340654,0.70113,2690.0,2689.3,0.538]
[1643842340655,1.57545754,2689.6,2689.3,0.538]
[1643842340852,1.57545754,2689.5,2689.3,0.538]
[1643842341052,0.70113,2690.0,2689.3,0.538]
[1643842341053,1.57545754,2689.4,2689.3,0.538]
[1643842341954,2.27658754,2690.0,2689.3,0.538]
[1643842344000,0.70113,2689.9,2689.3,0.538]
[1643842344800,1.57545754,2689.8,2689.3,0.538]
[1643842345002,1.57545754,2689.7,2689.3,0.538]
[1643842345301,1.57545754,2689.6,2689.3,0.538]
[1643842345509,1.57545754,2689.5,2689.3,0.538]
[1643842345707,1.57545754,2689.4,2689.3,0.538]
[1643842346103,0.70113,2689.8,2689.3,0.538]
[1643842346568,2.27658754,2689.8,2689.3,0.538]
[1643842346768,1.57545754,2689.7,2689.3,0.538]
[1643842346967,1.57545754,2689.6,2689.3,0.538]
[1643842347172,1.57545754,2689.5,2689.3,0.538]
[1643842347368,0.70113,2689.8,2689.3,0.538]
[1643842350804,0.70113,2689.7,2689.3,0.538]
[1643842351010,1.32725,2690.1,2688.8,0.538]
[1643842351011,2.27658754,2689.6,2688.8,0.538]
[1643842351204,2.27658754,2689.5,2688.8,0.538]
[1643842351603,1.57545754,2689.4,2688.8,0.538]
[1643842351804,1.57545754,2689.3,2688.8,0.538]
[1643842352105,1.57545754,2689.2,2688.8,0.538]
[1643842352305,1.57545754,2689.1,2688.8,0.538]
[1643842352505,0.1859,2689.6,2688.5,0.788]
[1643842352506,1.57545754,2689.0,2688.5,0.788]
[1643842352706,1.57545754,2688.9,2688.5,0.538]
[1643842352904,0.70113,2689.3,2688.5,0.538]
[1643842352905,1.57545754,2688.8,2688.5,0.538]
[1643842353204,0.93484,2689.5,2688.5,0.538]
[1643842353205,1.57545754,2688.7,2688.5,0.538]
[1643842353404,1.57545754,2688.6,2688.5,0.538]
[1643842354051,1.57545754,2689.2,2688.5,0.538]
[1643842354351,1.57545754,2689.1,2688.5,0.538]
[1643842354551,1.57545754,2689.0,2688.5,0.538]
[1643842354751,1.57545754,2688.9,2688.5,0.538]
[1643842354952,1.57410256,2688.8,2688.5,0.538]
[1643842355153,1.95003,2689.3,2688.5,0.538]
[1643842355753,1.2489,2689.3,2688.5,0.538]
[1643842357604,1.2489,2689.3,2688.6,0.00114298]
[1643842357804,1.2489,2689.3,2688.6,0.53914298]
[1643842358204,1.2489,2689.3,2688.6,0.83914298]
[1643842360406,0.1859,2689.2,2688.6,0.83914298]
[1643842360816,0.70660416,2689.4,2689.1,6.726]
[1643842361009,4.22178621,2689.7,2689.3,6.73848258]
[1643842361010,0.70660416,2689.7,2689.3,6.73848258]
[1643842361262,0.70660416,2689.9,2689.6,6.726]
[1643842361466,0.148734,2690.0,2689.7,7.264]
[1643842361659,0.148734,2690.0,2689.9,6.726]
[1643842361864,0.148734,2690.0,2689.9,7.4497]
[1643842362057,0.148734,2690.0,2689.9,8.4497]
[1643842364063,0.70660416,2690.2,2690.0,0.92925]
[1643842364259,0.70660416,2690.2,2690.1,0.538]
[1643842364660,0.70660416,2690.3,2690.1,0.838]
[1643842365500,0.70660416,2690.3,2690.2,0.92923]
[1643842365702,0.70660416,2690.3,2690.2,1.46723]
[1643842365901,0.70660416,2690.3,2690.2,2.46723]
[1643842367004,0.70660416,2690.5,2690.2,3.3963762]
[1643842368103,0.70660416,2690.6,2690.2,3.3963762]
[1643842368304,0.1857,2691.0,2690.2,3.3963762]
[1643842368305,0.70660416,2690.5,2690.2,3.3963762]
[1643842368503,0.70660416,2690.5,2690.3,6.726]
[1643842368752,0.70660416,2690.5,2690.4,0.538]
[1643842369052,0.93484,2690.7,2690.4,0.538]
[1643842369552,0.70557048,2690.5,2690.4,0.538]
[1643842369752,0.93484,2690.7,2690.4,0.538]
[1643842369952,0.70546471,2690.5,2690.4,0.538]
[1643842370153,0.70546471,2690.5,2690.4,1.46713]
[1643842370654,0.70546471,2690.5,2690.4,0.538]
[1643842371254,0.70546471,2690.6,2690.4,0.538]
[1643842371859,0.93484,2690.9,2690.4,0.538]
[1643842371860,0.70546471,2690.7,2690.4,0.538]
[1643842372254,0.70546471,2690.6,2690.4,0.538]
[1643842372712,0.70546471,2690.6,2690.4,0.53891504]
[1643842373111,0.70546471,2690.5,2690.4,0.53891504]
[1643842374711,0.70546471,2690.5,2690.4,0.83891504]
[1643842374915,0.70546471,2690.7,2690.4,0.83891504]
[1643842375112,0.70546471,2690.7,2690.4,1.76805504]
[1643842375512,1.57497997,2690.6,2690.4,1.76805504]
[1643842375712,1.57497997,2690.5,2690.4,1.76805504]
[1643842376355,2.28044468,2690.7,2690.4,1.76805504]
[1643842376556,1.57497997,2690.6,2690.4,1.76805504]
[1643842376755,1.57497997,2690.5,2690.4,0.53891504]
[1643842376957,2.28044468,2690.7,2690.4,0.53891504]
[1643842377356,0.93484,2690.9,2690.4,0.53891504]
[1643842377357,2.28044468,2690.6,2690.4,0.53891504]
[1643842377557,1.57497997,2690.5,2690.4,0.53891504]
[1643842377758,1.57497997,2690.5,2690.4,0.538]
[1643842377759,1.57872003,2690.5,2690.4,0.538]
[1643842377958,0.00374006,2690.5,2690.4,0.538]
[1643842378562,1.57872003,2690.5,2690.4,0.538]
[1643842378962,0.00374006,2690.5,2690.4,0.538]
[1643842379563,1.57872003,2690.5,2690.4,0.538]
[1643842380627,2.28418474,2690.5,2690.4,0.538]
[1643842381528,1.57872003,2690.5,2689.8,0.32087229]
[1643842381728,2.2793511,2690.4,2689.8,0.538]
[1643842381930,1.57497997,2690.3,2689.8,0.538]
[1643842382129,0.00374006,2690.5,2689.8,0.538]
[1643842382130,1.57497997,2690.2,2689.8,0.538]
[1643842382333,1.57497997,2690.1,2689.8,0.538]
[1643842382530,0.00374006,2690.5,2689.8,0.538]
[1643842382531,1.57497997,2690.0,2689.8,0.538]
[1643842382931,0.00374006,2690.5,2689.8,0.538]
[1643842382932,1.57497997,2689.9,2689.8,0.538]
[1643842383331,1.57872003,2690.5,2689.8,0.538]
[1643842383530,1.57497997,2690.4,2689.8,0.538]
[1643842383753,1.57497997,2690.3,2689.8,0.538]
[1643842383953,1.57497997,2690.2,2689.8,0.538]
[1643842384153,1.57497997,2690.1,2689.8,0.538]
[1643842384354,0.00374006,2690.5,2689.8,0.538]
[1643842384355,1.57497997,2690.0,2689.8,0.538]
[1643842384556,1.57497997,2689.9,2689.8,0.538]
[1643842385553,0.00374006,2690.5,2689.8,0.538]
[1643842387608,0.00385674,2689.9,2689.8,0.538]
[1643842390908,0.00385674,2689.9,2689.8,0.838]
[1643842391108,0.00385674,2689.9,2689.8,0.538]
[1643842392760,1.57497997,2689.9,2689.8,0.538]
[1643842392958,0.00289874,2690.1,2689.8,0.538]
[1643842393358,0.00289874,2690.1,2689.8,1.46739]
[1643842393563,1.57787871,2690.1,2689.8,1.46739]
[1643842393759,1.57497997,2690.0,2689.8,1.46739]
[1643842394059,1.57497997,2689.9,2689.8,1.46739]
[1643842394459,0.00289874,2690.1,2689.8,0.538]
[1643842397706,2.28189953,2690.4,2689.8,0.538]
[1643842399858,2.27899734,2690.3,2689.8,0.538]
[1643842400059,1.57497997,2690.2,2689.8,0.538]
[1643842400259,1.57497997,2690.1,2689.8,0.538]
[1643842400463,1.57497997,2690.0,2689.8,0.538]
[1643842400660,1.57497997,2689.9,2689.8,0.538]
[1643842400860,0.70401737,2690.3,2689.8,0.538]
[1643842401461,0.70401737,2690.3,2689.7,5.65]
[1643842401661,0.70401737,2690.3,2689.8,0.538]
[1643842401861,2.27899734,2690.3,2689.8,0.538]
[1643842402061,1.57497997,2690.2,2689.8,0.538]
[1643842402262,0.70401737,2690.3,2689.8,0.538]
[1643842402710,2.28189953,2690.4,2689.8,1.46738]
[1643842402906,0.1857,2690.5,2689.8,1.46738]
[1643842402907,1.5778925,2690.3,2689.8,2.46738]
[1643842403109,1.57497997,2690.2,2690.0,6.726]
[1643842403307,1.57497997,2690.1,2690.0,7.026]
[1643842403505,0.00291253,2690.3,2690.1,0.538]
[1643842404206,0.00291253,2690.3,2690.2,0.92922]
[1643842404408,0.00291253,2690.3,2690.2,1.46722]
[1643842405107,0.00291253,2690.3,2690.2,1.76722]
[1643842405307,1.57788466,2690.3,2690.2,1.76722]
[1643842405506,0.00291253,2690.3,2690.2,1.76722]
[1643842406007,1.57788466,2690.3,2690.2,1.76722]
[1643842406264,0.00291253,2690.3,2690.2,1.76722]
[1643842407963,1.57497213,2690.4,2690.2,3.94639]
[1643842408162,1.57497213,2690.3,2690.2,2.69639]
[1643842408372,1.57497213,2690.3,2690.2,3.69639]
[1643842408562,0.7063474,2690.5,2690.2,2.76722]
[1643842408962,0.7063474,2690.5,2690.2,1.76722]
[1643842409462,0.7063474,2690.5,2690.2,1.76725]
[1643842411514,0.7063474,2690.5,2690.3,1.5]
[1643842411709,0.7063474,2690.5,2690.4,0.538]
[1643842415557,0.00233003,2690.5,2690.4,0.538]
[1643842421459,0.7063474,2690.5,2690.3,0.35809255]
[1643842421655,0.7063474,2690.5,2690.4,0.538]
[1643842421857,0.00233003,2690.5,2690.4,0.538]
[1643842422555,0.70890943,2690.5,2690.4,0.538]
[1643842422954,2.28388156,2690.5,2690.4,0.538]
[1643842423155,0.70890943,2690.5,2690.4,0.538]
[1643842426009,2.28388156,2690.5,2690.4,0.538]
[1643842426208,0.70890943,2690.5,2690.4,0.538]
[1643842431661,0.00233003,2690.5,2690.4,0.538]
[1643842431862,0.70896282,2690.5,2690.4,0.538]
[1643842432804,2.28393495,2690.5,2690.4,0.538]
[1643842433007,0.70896282,2690.5,2690.4,0.538]
[1643842433204,0.00233003,2690.5,2690.4,0.538]
[1643842433404,0.70900053,2690.5,2690.4,0.538]
[1643842434206,2.28397266,2690.5,2690.4,0.538]
[1643842434405,1.57730216,2690.5,2690.4,0.538]
[1643842434605,0.00233003,2690.5,2690.4,0.538]
[1643842436009,1.57730216,2690.5,2690.4,0.538]
[1643842436456,0.00233003,2690.5,2690.4,0.538]
[1643842436853,0.70915583,2690.5,2690.4,0.538]
[1643842437054,2.28412796,2690.5,2690.4,0.538]
[1643842437253,0.70915583,2690.5,2690.4,0.538]
[1643842438856,1.57730216,2690.5,2690.4,0.538]
[1643842439159,0.00233003,2690.5,2690.4,0.538]
[1643842439857,1.57730216,2690.5,2690.4,0.538]
[1643842440108,0.00233003,2690.5,2690.4,0.538]
[1643842440911,0.00233003,2690.5,2690.4,0.488]
[1643842441112,1.57730216,2690.5,2690.4,0.488]
[1643842441311,0.00233003,2690.5,2690.4,0.488]
[1643842441510,0.00233003,2690.5,2689.7,1.85863]
[1643842441814,0.00233003,2690.5,2689.8,0.538]
[1643842441815,0.70711096,2690.4,2689.8,0.538]
[1643842442011,0.70711096,2690.4,2689.8,1.4674]
[1643842442210,0.70711096,2690.4,2689.8,2.7674]
[1643842443873,2.28208309,2690.3,2690.0,0.92943]
[1643842444072,0.70711096,2690.3,2690.1,0.538]
[1643842444277,1.57497213,2690.2,2690.1,0.538]
[1643842444576,0.70711096,2690.4,2690.1,0.538]
[1643842444772,0.70711096,2690.3,2690.1,0.538]
[1643842444973,0.70711096,2690.2,2690.1,0.538]
[1643842445173,2.50981213,2690.4,2690.1,0.538]
[1643842445374,0.93484,2690.4,2690.1,0.538]
[1643842445973,2.50981213,2690.3,2690.1,0.538]
[1643842446174,1.57497213,2690.2,2690.1,0.538]
[1643842446675,0.93484,2690.3,2690.1,0.538]
[1643842446874,1.57497213,2690.2,2690.1,0.538]
[1643842447078,0.93484,2690.3,2690.1,0.538]
[1643842447274,1.57497213,2690.2,2690.1,0.538]
[1643842447810,1.57788121,2690.2,2690.1,0.538]
[1643842448512,0.00290908,2690.2,2690.1,0.538]
[1643842452857,0.93774908,2690.4,2690.1,0.538]
[1643842453057,2.51272121,2690.4,2690.1,0.538]
[1643842453258,1.57497213,2690.3,2690.1,0.538]
[1643842453462,1.57497213,2690.2,2690.1,0.538]
[1643842453660,0.93774908,2690.4,2690.1,0.538]
[1643842455712,2.50981213,2690.3,2690.1,0.538]
[1643842455912,1.57497213,2690.2,2690.1,0.538]
[1643842456114,2.50981213,2690.2,2690.1,0.538]
[1643842456311,1.57497213,2690.2,2690.1,0.538]
[1643842456514,0.93484,2690.3,2690.1,0.538]
[1643842456713,2.50981213,2690.2,2690.1,0.538]
[1643842456913,0.93484,2690.3,2690.1,0.538]
[1643842457314,2.50981213,2690.2,2690.1,0.538]
[1643842457713,1.57497213,2690.2,2690.1,0.538]
[1643842458113,0.93775253,2690.3,2690.1,0.538]
[1643842458316,2.50981213,2690.2,2690.1,0.538]
[1643842458516,1.57497213,2690.2,2690.1,0.538]
[1643842458758,1.57788466,2690.3,2690.1,0.538]
[1643842458959,1.57788466,2690.3,2689.6,0.538]
[1643842458960,1.60531472,2690.2,2689.6,0.538]
[1643842459164,1.60531472,2690.2,2689.3,0.00275789]
[1643842459165,0.94296514,2689.7,2689.3,0.00275789]
[1643842459360,1.75772213,2690.1,2688.9,0.54075789]
[1643842459361,2.51793727,2689.6,2688.9,0.54075789]
[1643842459561,0.70730603,2689.3,2688.9,0.54075789]
[1643842459760,1.57497213,2689.2,2688.9,0.54075789]
[1643842459961,1.57497213,2689.1,2688.9,0.54075789]
[1643842460165,1.57497213,2689.0,2688.9,0.54075789]
[1643842460363,1.57497213,2689.0,2688.9,0.538]
[1643842460762,0.70730603,2689.4,2688.9,0.538]
[1643842460964,0.70730603,2689.4,2689.0,0.00275789]
[1643842461163,2.28227816,2689.3,2689.0,0.00275789]
[1643842461363,1.57497213,2689.2,2689.0,0.00275789]
[1643842461566,2.28227816,2689.2,2688.5,0.788]
[1643842461767,1.57497213,2689.1,2688.5,0.538]
[1643842462266,1.57497213,2689.0,2688.5,0.538]
[1643842462512,1.57497213,2688.9,2688.5,0.538]
[1643842462710,1.57497213,2688.8,2688.3,7.4]
[1643842462909,1.57497213,2689.0,2688.3,7.4]
[1643842463106,2.69097213,2688.9,2688.3,7.4]
[1643842463306,1.57497213,2688.8,2688.2,0.538]
[1643842463507,1.76087213,2688.8,2688.2,0.538]
[1643842463707,1.57497213,2688.7,2688.2,0.538]
[1643842464106,1.57497213,2688.6,2688.2,0.538]
[1643842464306,1.57497213,2688.5,2688.2,0.538]
[1643842464508,0.1859,2688.9,2688.2,0.538]
[1643842464509,1.57497213,2688.4,2688.2,0.538]
[1643842464709,2.79967213,2688.8,2688.2,0.538]
[1643842464908,1.57598164,2688.7,2688.2,0.538]
[1643842465107,1.76188164,2688.7,2688.2,0.538]
[1643842465311,1.76188164,2688.7,2687.8,0.25]
[1643842465312,1.75873164,2688.6,2687.8,0.25]
[1643842465509,1.76188164,2688.5,2687.8,0.25]
[1643842465708,1.76188164,2688.5,2687.6,0.538]
[1643842465709,1.57598164,2688.4,2687.6,0.538]
[1643842466007,0.186,2688.3,2687.6,0.538]
[1643842466268,1.57598164,2688.2,2687.6,0.538]
[1643842466464,0.186,2688.1,2687.6,0.538]
[1643842466864,0.9303,2688.4,2687.6,0.538]
[1643842466865,0.186,2688.3,2687.6,0.538]
[1643842467066,1.11635,2688.3,2687.6,0.538]
[1643842467268,2.50658259,2688.2,2687.6,0.538]
[1643842467466,1.76222259,2688.1,2687.6,0.538]
[1643842467668,3.75846146,2688.0,2686.9,0.3631944]
[1643842467870,3.75846146,2688.0,2687.0,0.538]
[1643842467871,1.76222259,2687.9,2687.0,0.538]
[1643842468065,0.186,2687.9,2687.0,0.538]
[1643842469269,1.57645033,2687.8,2687.0,0.538]
[1643842469469,0.186,2687.7,2687.0,0.538]
[1643842469668,2.33326027,2687.7,2687.0,0.538]
[1643842469868,0.186,2687.9,2687.0,0.538]
[1643842470114,1.57648143,2687.8,2687.0,0.538]
[1643842470316,2.34434767,2687.7,2687.0,0.538]
[1643842470519,0.186,2687.7,2687.0,0.538]
[1643842470715,0.186,2687.8,2687.0,0.538]
[1643842471117,2.34348709,2687.8,2687.0,0.538]
[1643842471318,0.186,2687.8,2687.0,0.538]
[1643842471916,2.31919148,2687.8,2687.0,0.538]
[1643842472417,0.186,2687.8,2687.0,0.538]
[1643842472817,0.00236157,2687.6,2687.0,0.538]
[1643842474964,0.18836157,2687.6,2687.0,0.538]
[1643842476364,0.00236157,2687.6,2687.0,0.538]
[1643842477262,0.00236157,2687.6,2687.1,0.0026285]
[1643842477713,0.186,2687.5,2687.1,0.0026285]
[1643842477914,3.5,2687.4,2687.1,0.0026285]
[1643842478117,3.5,2687.4,2687.0,0.538]
[1643842480016,0.186,2687.3,2687.0,0.538]
[1643842481658,0.186,2687.3,2686.6,0.0026285]
[1643842481859,0.186,2687.3,2686.7,0.538]
[1643842482159,0.186,2687.3,2686.8,0.0026285]
[1643842482362,3.5,2687.4,2686.9,0.538]
[1643842483265,0.01414026,2687.3,2687.0,0.0026285]
[1643842483860,0.01414026,2687.3,2686.9,0.538]
[1643842486424,1.57675349,2687.2,2686.6,0.0026285]
[1643842487521,1.57675349,2687.2,2685.6,7.4]
[1643842487522,1.26228336,2687.0,2685.6,7.4]
[1643842487718,5.80749349,2686.9,2685.6,7.4]
[1643842487917,5.80749349,2686.9,2685.1,0.538]
[1643842487918,5.78405952,2686.8,2685.1,0.538]
[1643842488218,26.98407633,2686.7,2684.7,0.543]
[1643842488420,26.98407633,2686.7,2684.1,2.2716]
[1643842488421,0.01240278,2686.3,2684.6,0.005]
[1643842488616,0.01240278,2686.3,2684.1,1.8535]
[1643842488617,0.93134,2685.8,2684.2,0.005]
[1643842488872,0.93134,2685.8,2684.1,1.201012]
[1643842488873,1.25,2685.5,2684.1,1.201012]
[1643842489073,5.44570349,2685.4,2684.1,1.201012]
[1643842489273,1.57675349,2685.3,2684.1,1.0655]
[1643842489474,2.36895,2685.2,2684.1,1.0655]
[1643842489674,5.07675349,2685.1,2684.1,1.0655]
[1643842489872,0.1862,2685.0,2684.1,1.0655]
[1643842490074,3.5,2684.9,2684.1,1.0655]
[1643842490282,0.1862,2684.8,2684.2,0.538]
[1643842490472,3.5,2684.9,2684.2,0.538]
[1643842490877,0.1862,2684.8,2684.2,0.538]
[1643842491478,0.1862,2684.8,2684.1,1.0655]
[1643842491675,3.5,2684.9,2684.1,1.0655]
[1643842494714,5.7477396,2684.9,2684.1,1.0655]
[1643842494915,3.5,2684.9,2684.1,1.0655]
[1643842495315,5.74932126,2684.9,2684.1,1.0655]
[1643842495515,3.5,2684.9,2684.1,1.0655]
[1643842495715,3.5,2684.9,2684.2,0.538]
[1643842496364,3.39887293,2684.9,2684.2,0.538]
[1643842496763,3.39887293,2684.9,2684.1,1.0655]
[1643842496961,3.39887293,2684.9,2684.2,0.538]
[1643842497961,0.00421199,2684.8,2684.2,0.538]
[1643842498562,0.00421199,2684.8,2684.1,1.0655]
[1643842499361,2.22348753,2684.8,2684.1,1.6035]
[1643842499762,0.00421199,2684.8,2684.1,1.6035]
[1643842500013,2.21962354,2684.8,2684.1,1.6035]
[1643842500215,0.36895,2684.7,2684.1,1.0655]
[1643842500417,5.07818064,2684.6,2684.1,1.0655]
[1643842500615,0.1862,2684.5,2684.1,1.0655]
[1643842501015,2.38801358,2684.5,2684.1,1.0655]
[1643842501215,0.1862,2684.5,2684.1,1.0655]
[1643842501418,2.46142123,2684.5,2684.1,1.0655]
[1643842501626,5.32820626,2684.4,2682.9,3.0002]
[1643842501821,5.32820626,2684.4,2682.6,0.538]
[1643842501822,0.01292071,2683.6,2682.6,0.538]
[1643842502218,0.01292071,2683.6,2682.7,0.04092649]
[1643842503016,0.1862,2683.5,2682.5,0.04206334]
[1643842503218,1.57891276,2683.4,2682.5,0.04460876]
[1643842503418,1.57891276,2683.4,2681.2,0.01650943]
[1643842503419,0.01219693,2682.8,2681.7,0.538]
[1643842503618,0.01219693,2682.8,2682.2,0.0025455]
[1643842503619,0.1864,2682.7,2682.2,0.0025455]
[1643842504061,0.1862,2683.0,2682.2,0.0025455]
[1643842504370,0.93241,2682.8,2681.6,0.0025455]
[1643842504562,1.76559865,2682.7,2681.6,0.0025455]
[1643842504761,0.36915,2682.7,2681.6,0.0025455]
[1643842505762,4.00730218,2682.6,2681.6,0.0025455]
[1643842505962,0.1864,2682.5,2681.6,0.0025455]
[1643842506163,0.1864,2682.5,2681.5,0.2905455]
[1643842506363,2.48345476,2682.5,2681.5,0.2905455]
[1643842506563,0.1864,2682.5,2681.5,0.2905455]
[1643842513270,0.00085083,2682.4,2681.5,0.2905455]
[1643842514679,0.1864,2682.3,2681.5,0.2905455]
[1643842515521,0.18275,2682.2,2681.5,0.2905455]
[1643842515716,0.1864,2682.1,2681.5,0.2905455]
[1643842516316,0.00085083,2682.4,2681.5,0.2905455]
[1643842516317,0.36915,2682.3,2681.5,0.2905455]
[1643842517916,0.37265157,2682.3,2681.5,0.2905455]
[1643842518523,0.37265157,2682.3,2681.2,0.01650943]
[1643842518787,0.37265157,2682.3,2681.0,0.543]
[1643842518788,3.82254146,2682.2,2681.0,0.543]
[1643842519067,3.82254146,2682.2,2680.9,0.538]
[1643842519068,4.5610825,2682.1,2680.9,0.538]
[1643842519266,1.57957632,2682.0,2681.1,0.00254651]
[1643842519469,0.1864,2681.9,2681.1,0.00254651]
[1643842519667,1.57957632,2681.8,2681.1,0.00254651]
[1643842519973,0.01288738,2681.5,2681.1,0.00254651]
[1643842520166,0.19563738,2681.5,2680.6,0.00254651]
[1643842520366,0.18275,2681.5,2680.6,0.00254651]
[1643842520566,0.1864,2681.4,2680.6,0.00254651]
[1643842520767,0.18275,2681.5,2680.6,0.00254651]
[1643842520965,0.1864,2681.4,2680.6,0.00254651]
[1643842521168,0.18275,2681.3,2680.6,0.00254651]
[1643842521565,0.36925,2681.3,2679.8,2.0]
[1643842521765,2.6,2681.2,2680.5,0.00254706]
[1643842522166,2.6,2681.2,2680.3,0.00254706]
[1643842523625,2.06296736,2681.1,2680.3,0.00254706]
[1643842523824,1.76671736,2681.0,2679.9,0.00254706]
[1643842524025,0.18275,2680.9,2679.9,0.00254706]
[1643842524225,0.1865,2680.8,2679.9,0.00254706]
[1643842524623,0.18275,2680.7,2679.9,0.00254706]
[1643842524825,0.0128215,2680.6,2679.2,0.005]
[1643842525027,0.0128215,2680.6,2679.1,0.25]
[1643842525028,1.7632939,2680.5,2679.1,0.25]
[1643842525229,1.7632939,2680.5,2678.6,0.015]
[1643842525230,6.9039,2680.4,2678.6,0.015]
[1643842525425,14.2772,2680.4,2678.5,0.57483136]
[1643842525626,1.7634775,2680.3,2678.5,0.57483136]
[1643842525826,0.01245625,2680.0,2678.5,0.015]
[1643842526026,0.1865,2679.9,2678.4,0.538]
[1643842526269,0.1865,2679.9,2678.4,0.438]
[1643842526573,1.58100645,2679.8,2678.1,0.553]
[1643842526769,0.36925,2679.7,2678.1,0.553]
[1643842526969,2.36925,2679.7,2678.1,0.553]
[1643842527169,2.5009756,2679.6,2678.1,0.553]
[1643842527375,0.36925,2679.5,2678.1,0.015]
[1643842527570,2.0,2679.4,2678.1,0.015]
[1643842527775,0.1865,2679.4,2678.1,0.015]
[1643842529274,0.93353,2679.8,2678.2,2.6]
[1643842529479,0.1866,2680.2,2679.1,0.01260083]
[1643842529678,0.00112291,2680.5,2679.3,6.726]
[1643842529874,0.1865,2681.3,2679.7,6.73871646]
[1643842530145,0.70730603,2681.4,2679.7,6.73871646]
[1643842530146,1.58032913,2681.2,2680.0,6.726]
[1643842530338,1.58032913,2681.1,2680.1,0.538]
[1643842530535,0.1865,2681.5,2680.1,0.538]
[1643842530536,1.58032913,2681.0,2680.1,1.7245]
[1643842530733,0.1865,2681.5,2680.1,1.7245]
[1643842530734,0.89380603,2681.5,2680.9,6.726]
[1643842530938,1.58009607,2681.4,2681.3,6.726]
[1643842531134,1.58009607,2681.4,2681.3,3.89353487]
[1643842531336,0.149246,2681.6,2681.3,5.38009487]
[1643842531535,0.149246,2681.6,2681.5,6.726]
[1643842531734,0.149246,2681.6,2681.5,7.264]
[1643842531935,1.12936514,2682.6,2681.5,7.264]
[1643842531936,0.70730603,2682.4,2681.5,8.63696]
[1643842532138,1.57969799,2682.3,2682.0,6.726]
[1643842532437,0.70730603,2682.7,2682.2,6.726]
[1643842532638,0.70730603,2682.7,2681.9,0.93194]
[1643842532639,1.57952878,2682.2,2681.9,0.93194]
[1643842532840,0.70730603,2682.6,2682.2,0.1864]
[1643842533036,1.57952617,2682.5,2682.0,0.7244]
[1643842533237,1.57952617,2682.5,2682.2,0.1864]
[1643842533435,0.70730603,2682.7,2682.4,6.726]
[1643842533637,2.28681454,2682.6,2682.0,0.1864]
[1643842533875,2.28681454,2682.5,2682.3,6.726]
[1643842534074,1.57950851,2682.4,2682.3,6.726]
[1643842534272,1.57950851,2682.4,2682.3,7.264]
[1643842534574,2.28681454,2682.4,2682.3,7.264]
[1643842535173,1.57950851,2682.4,2682.3,0.538]
[1643842535573,1.35,2682.3,2682.0,0.1864]
[1643842535776,1.57950851,2682.2,2682.1,0.538]
[1643842535974,1.76590851,2682.2,2682.1,0.538]
[1643842536173,1.76590851,2682.2,2682.0,0.1864]
[1643842536374,2.27349691,2682.2,2682.0,0.1864]
[1643842536573,1.57950851,2682.1,2682.0,0.1864]
[1643842537077,0.6939884,2682.2,2682.0,0.1864]
[1643842537273,0.6939884,2682.1,2681.7,0.538]
[1643842538721,2.27349691,2682.0,2681.7,0.538]
[1643842538919,1.57950851,2681.9,2681.7,0.538]
[1643842539318,0.6939884,2682.0,2681.7,0.538]
[1643842539319,1.57950851,2681.8,2681.7,0.538]
[1643842539722,0.6939884,2681.9,2681.7,0.538]
[1643842539920,1.57950851,2681.8,2681.7,0.538]
[1643842540120,0.6939884,2681.8,2681.7,0.538]
[1643842540320,1.57950851,2681.9,2681.7,0.538]
[1643842540719,1.57950851,2681.8,2681.7,0.538]
[1643842540922,0.6939884,2682.0,2681.7,0.538]
[1643842541381,2.27349691,2682.0,2681.7,0.538]
[1643842541585,2.27349691,2682.0,2681.0,0.29184954]
[1643842541781,2.27349691,2682.0,2681.4,0.00254635]
[1643842542080,2.27349691,2682.0,2681.5,0.538]
[1643842542281,2.27349691,2681.9,2681.5,0.538]
[1643842542581,1.57950851,2681.8,2681.5,0.538]
[1643842542882,0.6939884,2681.9,2681.5,0.538]
[1643842542883,1.57950851,2681.7,2681.5,0.538]
[1643842543085,1.57950851,2681.6,2681.5,0.538]
[1643842543684,1.57950851,2681.6,2681.0,0.00254635]
[1643842543885,1.57950851,2681.6,2680.7,0.00254635]
[1643842543886,0.6995688,2681.4,2680.7,0.00254635]
[1643842544083,2.52247365,2681.6,2680.7,0.00254635]
[1643842544084,2.46547731,2681.3,2680.7,0.00254635]
[1643842544285,2.27907731,2681.2,2680.7,0.00254635]
[1643842544485,1.57950851,2681.1,2680.5,0.00254635]
[1643842544884,0.1865,2681.0,2680.5,0.00254635]